{"text_format":"1","workbook":"xlsx","n_sheets":2,"sheets":["ИСХ.","АОСР"],"not_rendered":{"charts":0,"images":0,"macros":1,"external_links":6,"defined_names":66,"comments":0,"pivot_tables":0},"unopened":[],"bounds":{"document_bytes":16777216,"sheet_cells":100000,"rows_first":2000,"rows_last":500,"rows_between":2000,"halvings":0,"cell_chars":16384,"cell_head_chars":4096},"cells_cut":0,"cells_raw":0,"read":"whole","date_system":"1900"}

{"sheet":"ИСХ.","index":0,"n_rows":15,"n_cols":14,"rows_kept":15,"cut":false,"hidden":false,"merged":[[0,0,0,1],[0,2,0,8]]}
["Объект:"]
[]
["№ п.п.","АОСР","Дата от","Дата до","Дата подписания","Пункт 1\n(Наименование работ)","Кол-во сим.\nп.1\n(не более 135)","Пункт 2\n(Шифр проекта)","Пункт 3\n(МТР)","Кол-во сим.\nп.3\n(не более 135)","Пункт 4\n(ИС и т.д.)","Пункт 7","Приложения","Дополнительные сведения"]
[8,{"$f":"CONCATENATE(Таблица1[[#This Row],[№ п.п.]],\"-ГП\")","v":"8-ГП"},"2024-09-15","2024-09-15","2024-09-15","Досыпка насыпи из грунта с уплотнением до проектной отметки с планировкой (h-переменной)",{"$f":"LEN(Таблица1[[#This Row],[Пункт 1\n(Наименование работ)]])","v":88},"2400-G19127-042-CS-DRW-00321-01-R rev.11C sh.3 / 340-1-19П-06003-ГП ред.11C л.3 от 20.09.2022 г.; \n2400-G19127-042-CS-DRW-00322-01-R rev.12C sh.4 / 340-1-19П-06003-ГП ред.12C л.4 от 20.09.2022 г.","Песок для строительных работ, штабель 5, Карьер № 206, АОРПИ №5 от 15.09.2024, Паспорт № 206-5 от 18.11.2022г., Протокол испытания несвязного грунта № 15/09-01 от 15.09.2024 г.",{"$f":"LEN(Таблица1[[#This Row],[Пункт 3\n(МТР)]])","v":176},"Исполнительная схема №1 картограмма зем.полотна от 15.09.2024 г.; \nИсполнительная схема №2 планировки верха площадки и откосов от 15.09.2024 г.","Разработка анкерной траншеи в ручную",{"$f":"Таблица1[[#This Row],[Пункт 4\n(ИС и т.д.)]]","v":"Исполнительная схема №1 картограмма зем.полотна от 15.09.2024 г.; \nИсполнительная схема №2 планировки верха площадки и откосов от 15.09.2024 г."},{"$f":"1/0","v":{"$error":"#DIV/0!"}}]
[9,{"$f":"CONCATENATE(Таблица1[[#This Row],[№ п.п.]],\"-ГП\")","v":"9-ГП"},"2024-09-16","2024-09-16","2024-09-16","Разработка анкерной траншеи в ручную h=0.10 м.",{"$f":"LEN(Таблица1[[#This Row],[Пункт 1\n(Наименование работ)]])","v":46},"2400-G19127-042-CS-DRW-00322-01-R rev.12C sh.4 / 340-1-19П-06003-ГП ред.12C л.4 от 20.09.2022 г.",{"$f":"1/0","v":{"$error":"#DIV/0!"}},{"$f":"LEN(Таблица1[[#This Row],[Пункт 3\n(МТР)]])","v":{"$error":"#DIV/0!"}},"Исполнительная схема разработки анкерной траншеи №9-ГП от 16.09.2024 г.","Укладка на откосы насыпи геоматов МТ 15-350 (300) \"ЭКСТРАМАТ\"",{"$f":"Таблица1[[#This Row],[Пункт 4\n(ИС и т.д.)]]","v":"Исполнительная схема разработки анкерной траншеи №9-ГП от 16.09.2024 г."},{"$error":"#DIV/0!"}]
[10,{"$f":"CONCATENATE(Таблица1[[#This Row],[№ п.п.]],\"-ГП\")","v":"10-ГП"},"2024-09-17","2024-09-18","2024-09-18","Укладка на откосы насыпи геоматов МТ 15-350(300) \"ЭКСТРАМАТ\"",{"$f":"LEN(Таблица1[[#This Row],[Пункт 1\n(Наименование работ)]])","v":60},"2400-G19127-042-CS-DRW-00322-01-R rev.12C sh.4 / 340-1-19П-06003-ГП ред.12C л.4 от 20.09.2022 г.","Мат трехмерный МТ 15-350 (300) ЭКСТРАМАТ, АОРПИ №7 от 15.09.2024, Паспорт качества №00000000009/847 от 20.06.2024 г.; Арматура ø6 мм. сталь А240С, АОРПИ №10 от 15.09.2024, Сертификат качества № 1710004858 от 31.12.2019 г.",{"$f":"LEN(Таблица1[[#This Row],[Пункт 3\n(МТР)]])","v":221},"Исполнительная схема укладки геоматов №10-ГП от 18.09.2024 г.","Обратная засыпка анкерной траншеи вручную",{"$f":"Таблица1[[#This Row],[Пункт 4\n(ИС и т.д.)]]","v":"Исполнительная схема укладки геоматов №10-ГП от 18.09.2024 г."},{"$error":"#DIV/0!"}]
[11,{"$f":"CONCATENATE(Таблица1[[#This Row],[№ п.п.]],\"-ГП\")","v":"11-ГП"},"2024-09-18","2024-09-18","2024-09-18","Обратная засыпка анкерной траншеи вручную",{"$f":"LEN(Таблица1[[#This Row],[Пункт 1\n(Наименование работ)]])","v":41},"2400-G19127-042-CS-DRW-00322-01-R rev.12C sh.4 / 340-1-19П-06003-ГП ред.12C л.4 от 20.09.2022 г.","Песок для строительных работ, штабель 5, Карьер № 206, АОРПИ №5 от 15.09.2024, Паспорт № 206-5 от 18.11.2022г., Протокол испытания несвязного грунта № 15/09-01 от 15.09.2024 г.",{"$f":"LEN(Таблица1[[#This Row],[Пункт 3\n(МТР)]])","v":176},"Исполнительная схема обратной засыпки анкерной траншеи №11-ГП  от 18.09.2024 г.","Отсыпку растительного грунта. Засыпка откосов суглинистопесчаной смесью",{"$f":"Таблица1[[#This Row],[Пункт 4\n(ИС и т.д.)]]","v":"Исполнительная схема обратной засыпки анкерной траншеи №11-ГП  от 18.09.2024 г."},{"$error":"#DIV/0!"}]
[12,{"$f":"CONCATENATE(Таблица1[[#This Row],[№ п.п.]],\"-ГП\")","v":"12-ГП"},"2024-09-19","2024-09-19","2024-09-19","Устройство полотна из геосетки ПС 50/50-20 (500) ПОЛИСЕТ",{"$f":"LEN(Таблица1[[#This Row],[Пункт 1\n(Наименование работ)]])","v":56},"2400-G19127-042-CS-DRW-00322-01-R rev.12C sh.4 / 340-1-19П-06003-ГП ред.12C л.4 от 20.09.2022 г.","Геосетка ПС 50/50-20 (500) ПОЛИСЕТ, АОРПИ №8 от 15.09.2024, Паспорт качества №00000001254/898 от 29.06.2023 г.",{"$f":"LEN(Таблица1[[#This Row],[Пункт 3\n(МТР)]])","v":110},"Исполнительная схема устройства полотна из геосетки №12-ГП от 19.09.2024 г.","Устройство грунтощебеночной смеси (ГЩС)- щебень 60% , слоем отсыпки 25 см. ",{"$f":"Таблица1[[#This Row],[Пункт 4\n(ИС и т.д.)]]","v":"Исполнительная схема устройства полотна из геосетки №12-ГП от 19.09.2024 г."},{"$error":"#DIV/0!"}]
[13,{"$f":"CONCATENATE(Таблица1[[#This Row],[№ п.п.]],\"-ГП\")","v":"13-ГП"},"2024-09-20","2024-09-20","2024-09-20","Устройство грунтощебеночной смеси (ГЩС)- щебень 60% , слоем отсыпки 25 см. ",{"$f":"LEN(Таблица1[[#This Row],[Пункт 1\n(Наименование работ)]])","v":75},"2400-G19127-042-CS-DRW-00321-01-R rev.11C sh.3 / 340-1-19П-06003-ГП ред.11C л.3 от 20.09.2022 г.","Песок для строительных работ, штабель 5, Карьер № 206, АОРПИ №5 от 15.09.2024, Паспорт № 206-5 от 18.11.2022г., Протокол испытания несвязного грунта № 15/09-01 от 15.09.2024 г.; Щебень вторичный. Серийный выпуск. Фракция 20-40 мм., АОРПИ №9 от 15.09.2024, Сертификат соответствия №РОСС RU.НЕ06.Н14217 от 20.10.2023 г. по 19.10.2026 г.; Протокол испытаний №007/Н-20/10/23 от 20.10.2023 г.",{"$f":"LEN(Таблица1[[#This Row],[Пункт 3\n(МТР)]])","v":387},"Исполнительная схема №3 картограмма грунтощебня от 20.09.2024 г.;\nИсполнительная схема №5 планировки грунтощебня от 20.09.2024 г.","Покрытие и планировка растительного грунта h=0,2м по площадке.",{"$f":"Таблица1[[#This Row],[Пункт 4\n(ИС и т.д.)]]","v":"Исполнительная схема №3 картограмма грунтощебня от 20.09.2024 г.;\nИсполнительная схема №5 планировки грунтощебня от 20.09.2024 г."},{"$error":"#DIV/0!"}]
[14,{"$f":"CONCATENATE(Таблица1[[#This Row],[№ п.п.]],\"-ГП\")","v":"14-ГП"},"2024-09-20","2024-09-20","2024-09-20","Покрытие и планировка растительного грунта h=0,2м по площадке.",{"$f":"LEN(Таблица1[[#This Row],[Пункт 1\n(Наименование работ)]])","v":62},"2400-G19127-042-CS-DRW-00321-01-R rev.11C sh.3 / 340-1-19П-06003-ГП ред.11C л.3 от 20.09.2022 г.","Суглинок для строительных работ, штабель 5, Карьер № 206, АОРПИ №6 от 15.09.2024, Протокол испытания несвязного грунта № 15/09-02 от 15.09.2024 г.",{"$f":"LEN(Таблица1[[#This Row],[Пункт 3\n(МТР)]])","v":146},"Исполнительная схема №4 картограмма растительного грунта от 20.09.2024 г.; \nИсполнительная схема №6 планировка растительного грунта от 20.09.2024 г.","Засев трав",{"$f":"Таблица1[[#This Row],[Пункт 4\n(ИС и т.д.)]]","v":"Исполнительная схема №4 картограмма растительного грунта от 20.09.2024 г.; \nИсполнительная схема №6 планировка растительного грунта от 20.09.2024 г."},{"$error":"#DIV/0!"}]
[15,{"$f":"CONCATENATE(Таблица1[[#This Row],[№ п.п.]],\"-ГП\")","v":"15-ГП"},"2024-09-21","2024-09-25","2024-09-25","Засыпка откосов суглинистопесчаной смесью (СПС)",{"$f":"LEN(Таблица1[[#This Row],[Пункт 1\n(Наименование работ)]])","v":47},"2400-G19127-042-CS-DRW-00321-01-R rev.11C sh.3 / 340-1-19П-06003-ГП ред.11C л.3 от 20.09.2022 г.","Песок для строительных работ, штабель 5, Карьер № 206, АОРПИ №5 от 15.09.2024, Паспорт № 206-5 от 18.11.2022г., Протокол испытания несвязного грунта № 15/09-01 от 15.09.2024 г.; Суглинок для строительных работ, штабель 5, Карьер № 206, АОРПИ №6 от 15.09.2024, Протокол испытания несвязного грунта № 15/09-02 от 15.09.2024 г.",{"$f":"LEN(Таблица1[[#This Row],[Пункт 3\n(МТР)]])","v":324},"Исполнительная схема засыпки откосов суглинистопесчанной смесью (СПС) №15-ГП  от 25.09.2024 г.; \nПротокол определения степени уплотнения грунта методом \"режущего кольца\" № 25/09-01 от 25.09.2024 г.","Посев трав по слою суглинистопесчаной смесью (СПС)- песок 50%, h=0,15",{"$f":"Таблица1[[#This Row],[Пункт 4\n(ИС и т.д.)]]","v":"Исполнительная схема засыпки откосов суглинистопесчанной смесью (СПС) №15-ГП  от 25.09.2024 г.; \nПротокол определения степени уплотнения грунта методом \"режущего кольца\" № 25/09-01 от 25.09.2024 г."},{"$error":"#DIV/0!"}]
[16,{"$f":"CONCATENATE(Таблица1[[#This Row],[№ п.п.]],\"-ГП\")","v":"16-ГП"},"2024-09-26","2024-09-26","2024-09-26","Разработка выемки под тротуарную плитку в ручную (бетонная плитка 6К.7)",{"$f":"LEN(Таблица1[[#This Row],[Пункт 1\n(Наименование работ)]])","v":71},"2400-G19127-042-CS-DRW-00322-01-R rev.12C sh.4 / 340-1-19П-06003-ГП ред.12C л.4 от 20.09.2022 г.",{"$f":"1/0","v":{"$error":"#DIV/0!"}},{"$f":"LEN(Таблица1[[#This Row],[Пункт 3\n(МТР)]])","v":{"$error":"#DIV/0!"}},"Исполнительная  схема разработки выемки под тротуарную плитку №16-ГП от 26.09.2024 г.","Устройство подстилающего выравнивающего слоя из  пескоцементной смеси (цемент 12%) марки М100, слоем 10 см.",{"$f":"Таблица1[[#This Row],[Пункт 4\n(ИС и т.д.)]]","v":"Исполнительная  схема разработки выемки под тротуарную плитку №16-ГП от 26.09.2024 г."},{"$error":"#DIV/0!"}]
[17,{"$f":"CONCATENATE(Таблица1[[#This Row],[№ п.п.]],\"-ГП\")","v":"17-ГП"},"2024-09-26","2024-09-26","2024-09-26","Устройство подстилающего выравнивающего слоя из пескоцементной смеси (цемент 12%) марки М 100, слоем 10 см",{"$f":"LEN(Таблица1[[#This Row],[Пункт 1\n(Наименование работ)]])","v":106},"2400-G19127-042-CS-DRW-00322-01-R rev.12C sh.4 / 340-1-19П-06003-ГП ред.12C л.4 от 20.09.2022 г.","Документ о качестве ПЦС № 26/09-01 от 26.09.2024 г.",{"$f":"LEN(Таблица1[[#This Row],[Пункт 3\n(МТР)]])","v":51},"Исполнительная схема устройство подстилающего выравнивающего слоя из пескоцементной смеси (ПЦС) под тротуарную плитку №17-ГП  от 26.09.2024 г.","Укладка тротуарных плит тип 6К.7 (0,50x0,50х0,07)",{"$f":"Таблица1[[#This Row],[Пункт 4\n(ИС и т.д.)]]","v":"Исполнительная схема устройство подстилающего выравнивающего слоя из пескоцементной смеси (ПЦС) под тротуарную плитку №17-ГП  от 26.09.2024 г."},{"$error":"#DIV/0!"}]
[18,{"$f":"CONCATENATE(Таблица1[[#This Row],[№ п.п.]],\"-ГП\")","v":"18-ГП"},"2024-09-26","2024-09-26","2024-09-26","Укладка тротуарных плит тип 6К.7 (0,50х0,50х0,07)",{"$f":"LEN(Таблица1[[#This Row],[Пункт 1\n(Наименование работ)]])","v":49},"2400-G19127-042-CS-DRW-00322-01-R rev.12C sh.4 / 340-1-19П-06003-ГП ред.12C л.4 от 20.09.2022 г.","Тротуарная армированная плитка 6К.7, АОРПИ №11 от 15.09.2024, Паспорт качества № 337 от 03.09.2017 г.",{"$f":"LEN(Таблица1[[#This Row],[Пункт 3\n(МТР)]])","v":101},"Исполнительная схема укладки тротуарных плит №18-ГП",{"$f":"1/0","v":{"$error":"#DIV/0!"}},{"$f":"Таблица1[[#This Row],[Пункт 4\n(ИС и т.д.)]]","v":"Исполнительная схема укладки тротуарных плит №18-ГП"},{"$error":"#DIV/0!"}]
[1,2,3,4,5,6,7,8,9,10,11,12,13,14]

{"sheet":"АОСР","index":1,"n_rows":120,"n_cols":54,"rows_kept":120,"cut":false,"hidden":false,"merged":[[53,52,54,56],[47,52,48,58],[61,52,62,57],[0,17,0,50],[2,1,2,50],[3,1,3,50],[4,1,4,50],[5,1,5,50],[7,1,7,50],[66,1,66,50],[75,1,75,50],[87,1,87,50],[16,1,16,50],[17,1,17,50],[18,1,18,50],[19,1,19,50],[20,1,20,50],[21,1,21,50],[8,1,8,50],[9,1,9,50],[10,1,10,50],[12,1,12,50],[13,1,13,50],[14,1,14,50],[27,1,27,50],[28,1,28,50],[29,1,29,50],[30,1,30,50],[31,1,31,50],[32,1,32,50],[22,1,22,2],[22,3,22,16],[22,47,22,49],[23,47,23,49],[24,1,24,50],[25,1,25,50],[26,1,26,50],[39,1,39,50],[40,1,40,50],[41,1,41,50],[42,1,42,50],[43,1,43,50],[44,1,44,50],[33,1,33,50],[34,1,34,50],[35,1,35,50],[36,1,36,50],[37,1,37,50],[38,1,38,50],[58,1,58,50],[59,1,59,50],[67,1,67,50],[68,1,68,50],[69,1,69,50],[70,1,70,50],[45,1,45,50],[51,1,51,50],[53,1,53,50],[55,1,55,50],[56,1,56,50],[57,1,57,50],[46,1,46,50],[47,1,47,50],[48,1,48,50],[49,1,49,50],[50,1,50,50],[54,1,54,50],[78,19,78,20],[78,31,78,33],[71,1,71,50],[72,1,72,50],[76,1,76,50],[77,1,77,6],[77,7,77,17],[77,19,77,20],[77,31,77,33],[73,1,73,50],[74,1,74,50],[78,1,78,6],[78,7,78,17],[108,1,108,50],[109,1,109,19],[93,1,93,50],[94,1,94,50],[95,1,95,50],[96,1,96,50],[97,1,97,50],[102,1,102,50],[86,1,86,50],[88,1,88,50],[92,1,92,8],[92,9,92,10],[92,11,92,50],[101,1,101,50],[90,1,90,50],[91,1,91,50],[89,1,89,49],[106,1,106,19],[107,1,107,19],[107,44,107,50],[98,1,98,50],[99,1,99,50],[100,1,100,50],[119,1,119,19],[119,44,119,50],[60,1,60,50],[61,1,61,50],[62,1,62,50],[63,1,63,50],[64,1,64,50],[65,1,65,50],[77,23,77,29],[78,23,78,29],[114,1,114,50],[115,1,115,19],[116,1,116,19],[116,44,116,50],[117,1,117,50],[118,1,118,19],[110,1,110,19],[110,44,110,50],[111,1,111,50],[112,1,112,19],[113,1,113,19],[113,44,113,50],[103,1,103,50],[104,1,104,19],[82,1,82,50],[105,1,105,19],[105,44,105,50],[79,1,79,50],[80,1,80,50],[81,1,81,50],[83,1,83,50],[84,1,84,50],[85,1,85,50]]}
[null,null,null,null,null,null,null,null,null,null,null,null,null,null,null,null,null,"Приложение № 3 к составу исполнительной документации при строительстве, реконструкции, капитальном ремонте объектов капитального строительства, утверждённому приказом Министерства строительства и жилищно-коммунального хозяйства Российской Федерации от 16 мая 2023г. №344/пр.",null,null,null,null,null,null,null,null,null,null,null,null,null,null,null,null,null,null,null,null,null,null,null,null,null,null,null,null,null,null,null,null,null,null,9,{"$f":"IFERROR(VLOOKUP(BA1,ИСХ.!A4:N14,2,FALSE),\"\")","v":"9-ГП"}]
[null,"Объект капитального строительства "]
[]
[]
[]
[null,"(наименование объекта капитального строительства в соответствии с проектной документацией, почтовый или строительный адрес объекта капитального строительства)"]
[null,"Застройщик, технический заказчик, лицо, ответственное за эксплуатацию здания, сооружения или региональный оператор"]
[]
[]
[]
[null,"(фамилия, имя, отчество (последнее - при наличии), адрес места жительства, ОГРНИП, ИНН индивидуального предпринимателя, полное и (или) сокращённое наименование, ОГРН, ИНН, адрес юридического лица в пределах его места нахождения, телефон или факс, полное и (или) сокращённое наименование, ОГРН, ИНН саморегулируемой организации, членом которой является указанное юридическое лицо или индивидуальный предприниматель (за исключением случаев, когда членство в саморегулируемых организациях в области строительства, реконструкции, капитального ремонта объектов капитального строительства не требуется); фамилия, имя, отчество (последнее - при наличии), паспортные данные, адрес места жительства, телефон или факс - для физических лиц, не являющихся индивидуальными предпринимателями)"]
[null,"Лицо, осуществляющее строительство, реконструкцию, капитальный ремонт"]
[]
[]
[null,"(фамилия, имя, отчество (последнее - при наличии), адрес места жительства, ОГРНИП, ИНН индивидуального предпринимателя, полное и (или) сокращённое наименование, ОГРН, ИНН, адрес юридического лица в пределах его места нахождения, телефон или факс, полное и (или) сокращённое наименование, ОГРН, ИНН саморегулируемой организации, членом которой является указанное юридическое лицо или индивидуальный предприниматель (за исключением случаев, когда членство в саморегулируемых организациях в области строительства, реконструкции, капитального ремонта объектов капитального строительства не требуется)"]
[null,"Лицо, осуществляющее подготовку проектной документации"]
[]
[]
[]
[null,"(фамилия, имя, отчество (последнее - при наличии), адрес места жительства, ОГРНИП, ИНН индивидуального предпринимателя, полное и (или) сокращённое наименование, ОГРН, ИНН, адрес юридического лица в пределах его места нахождения, телефон или факс, полное и (или) сокращённое наименование, ОГРН, ИНН саморегулируемой организации, членом которой является указанное юридическое лицо или индивидуальный предприниматель (за исключением случаев, когда членство в саморегулируемых организациях в области архитектурно-строительного проектирования не требуется)"]
[null,"АКТ"]
[null,"освидетельствования скрытых работ "]
[null,"№",null,{"$f":"IFERROR(VLOOKUP(BA1,ИСХ.!A4:N14,2,FALSE),\"\")","v":"9-ГП"},null,null,null,null,null,null,null,null,null,null,null,null,null,null,null,null,null,null,null,null,null,null,null,null,null,null,null,null,null,null,null,null,null,null,null,null,null,null,null,null,null,null,null,{"$f":"IFERROR(VLOOKUP(BA1,ИСХ.!A4:N14,5,FALSE),\"\")","v":"2024-09-16"}]
[null,null,null,null,null,null,null,null,null,null,null,null,null,null,null,null,null,null,null,null,null,null,null,null,null,null,null,null,null,null,null,null,null,null,null,null,null,null,null,null,null,null,null,null,null,null,null,"(дата составления акта)"]
[null,"Представитель застройщика, технического заказчика, лица, ответственного за эксплуатацию здания, сооружения или регионального оператора по вопросам строительного контроля"]
[]
[]
[null,"(должность (при наличии), фамилия, инициалы, идентификационный номер в национальном реестре специалистов в области строительства (за исключением случаев, когда членство в саморегулируемых организациях в области строительства, реконструкции, капитального ремонта объектов капитального строительства не требуется), реквизиты распорядительного документа, подтверждающего полномочия, с указанием полного и (или) сокращённого наименования, ОГРН, ИНН, адреса юридического лица в пределах его места нахождения (в случае осуществления строительного контроля на основании договора с застройщиком или техническим заказчиком), фамилии, имени, отчества (последнее - при наличии), адреса места жительства, ОГРНИП, ИНН индивидуального\tпредпринимателя (в случае осуществления строительного контроля на основании договора с застройщиком или техническим заказчиком)"]
[null,"Представитель лица, осуществляющего строительство, реконструкцию, капитальный ремонт"]
[]
[null,"(должность (при наличии), фамилия, инициалы, реквизиты распорядительного документа, подтверждающего полномочия)"]
[null,"Представитель лица, осуществляющего строительство, реконструкцию, капитальный ремонт, по вопросам строительного контроля"]
[]
[null,"(должность (при наличии), фамилия, инициалы, идентификационный номер в национальном реестре специалистов в области строительства (за исключением случаев, когда членство в саморегулируемых организациях в области строительства, реконструкции, капитального ремонта объектов капитального строительства не требуется), реквизиты распорядительного документа,\tподтверждающего полномочия)"]
[null,"Представитель лица, осуществляющего подготовку проектной документации (в случае привлечения застройщиком лица, осуществляющего подготовку проектной документации, для проверки соответствия выполняемых работ проектной документации согласно части 2 статьи 53 Градостроительного кодекса Российской Федерации)"]
[null,"н/п"]
[null,"(должность (при наличии), фамилия, инициалы, реквизиты распорядительного документа, подтверждающего полномочия, с указанием полного и (или) сокращённого наименования, ОГРН, ИНН, адреса юридического лица в пределах его места нахождения, фамилии, имени, отчества (последнее - при наличии), адреса места жительства, ОГРНИП, ИНН индивидуального предпринимателя)"]
[null,"Представитель лица, выполнившего работы, подлежащие освидетельствованию (в случае выполнения работ по договорам о строительстве, реконструкции, капитальном ремонте объектов капитального строительства, заключённого с иными лицами)"]
[null,"н/п"]
[null,"(должность (при наличии), фамилия, инициалы, реквизиты распорядительного документа, подтверждающего полномочия, с указанием полного и (или) сокращённого наименования, ОГРН, ИНН, адреса юридического лица в пределах его места нахождения, фамилии, имени, отчества (последнее - при наличии), адреса места жительства, ОГРНИП, ИНН индивидуального предпринимателя)"]
[null,"произвели осмотр работ, выполненных "]
[]
[null,"(полное и (или) сокращённое наименования или фамилия, имя, отчество (последнее - при наличии) лица, выполнившего работы, подлежащие освидетельствованию)"]
[null,"и составили настоящий акт о нижеследующем:"]
[null,"1. К освидетельствованию предъявлены следующие работы:"]
[{"$f":"IF(ISNUMBER(SEARCH(\"\",B46)),\"х\",\"0\")","v":"х"},{"$f":"IFERROR(_xlfn.SINGLE(INDEX(ИСХ.!$F$4:$F$5550,_xlfn.AGGREGATE(15,6,ROW($1:$5576)/(ИСХ.!$B$4:$B$5550=$BB$1),ROWS($46:46)))),\"\")","v":"Разработка анкерной траншеи в ручную h=0.10 м."}]
[{"$f":"IF(ISNUMBER(SEARCH(\"\",B47)),\"х\",\"0\")","v":"0"},{"$f":"IFERROR(_xlfn.SINGLE(INDEX(ИСХ.!$F$4:$F$5550,_xlfn.AGGREGATE(15,6,ROW($1:$5576)/(ИСХ.!$B$4:$B$5550=$BB$1),ROWS($46:47)))),\"\")","v":""}]
["0",{"$f":"IFERROR(_xlfn.SINGLE(INDEX(ИСХ.!$F$4:$F$5550,_xlfn.AGGREGATE(15,6,ROW($1:$5576)/(ИСХ.!$B$4:$B$5550=$BB$1),ROWS($46:48)))),\"\")","v":""},null,null,null,null,null,null,null,null,null,null,null,null,null,null,null,null,null,null,null,null,null,null,null,null,null,null,null,null,null,null,null,null,null,null,null,null,null,null,null,null,null,null,null,null,null,null,null,null,null,null,"строки 46:51 перенос с листа \"ИСХ.\" столбец F за счет значения "]
["0",{"$f":"IFERROR(_xlfn.SINGLE(INDEX(ИСХ.!$F$4:$F$5550,_xlfn.AGGREGATE(15,6,ROW($1:$5576)/(ИСХ.!$B$4:$B$5550=$BB$1),ROWS($46:49)))),\"\")","v":""}]
["0",{"$f":"IFERROR(_xlfn.SINGLE(INDEX(ИСХ.!$F$4:$F$5550,_xlfn.AGGREGATE(15,6,ROW($1:$5576)/(ИСХ.!$B$4:$B$5550=$BB$1),ROWS($46:50)))),\"\")","v":""}]
["0",{"$f":"IFERROR(_xlfn.SINGLE(INDEX(ИСХ.!$F$4:$F$5550,_xlfn.AGGREGATE(15,6,ROW($1:$5576)/(ИСХ.!$B$4:$B$5550=$BB$1),ROWS($46:51)))),\"\")","v":""}]
["х","(наименование скрытых работ)"]
["х","2. Работы выполнены по проектной документации "]
[{"$f":"IF(ISNUMBER(SEARCH(\"\",B54)),\"х\",\"0\")","v":"х"},{"$f":"IFERROR(_xlfn.SINGLE(INDEX(ИСХ.!$H$4:$H$5550,_xlfn.AGGREGATE(15,6,ROW($1:$5576)/(ИСХ.!$B$4:$B$5550=$BB$1),ROWS($54:54)))),\"\")","v":"2400-G19127-042-CS-DRW-00322-01-R rev.12C sh.4 / 340-1-19П-06003-ГП ред.12C л.4 от 20.09.2022 г."},null,null,null,null,null,null,null,null,null,null,null,null,null,null,null,null,null,null,null,null,null,null,null,null,null,null,null,null,null,null,null,null,null,null,null,null,null,null,null,null,null,null,null,null,null,null,null,null,null,null,"строки 54:55 перенос с листа \"ИСХ.\" столбец H за счет значения "]
[{"$f":"IF(ISNUMBER(SEARCH(\"\",B55)),\"х\",\"0\")","v":"0"},{"$f":"IFERROR(_xlfn.SINGLE(INDEX(ИСХ.!$H$4:$H$5550,_xlfn.AGGREGATE(15,6,ROW($1:$5576)/(ИСХ.!$B$4:$B$5550=$BB$1),ROWS($54:55)))),\"\")","v":""}]
["х","ООО\"НИПИ ОНГМ\" ГИП Шерман Г.М."]
["х","(номер, другие реквизиты чертежа, наименование проектной и (или) рабочей документации, сведения о лицах, осуществляющих подготовку раздела проектной и (или) рабочей документации)"]
["х","3. При выполнении работ применены "]
[{"$f":"IF(ISNUMBER(SEARCH(\"\",B59)),\"х\",\"0\")","v":"0"},{"$f":"IFERROR(_xlfn.SINGLE(INDEX(ИСХ.!$I$4:$I$5550,_xlfn.AGGREGATE(15,6,ROW($1:$5576)/(ИСХ.!$B$4:$B$5550=$BB$1),ROWS($59:59)))),\"\")","v":""}]
[{"$f":"IF(ISNUMBER(SEARCH(\"\",B60)),\"х\",\"0\")","v":"0"},{"$f":"IFERROR(_xlfn.SINGLE(INDEX(ИСХ.!$I$4:$I$5550,_xlfn.AGGREGATE(15,6,ROW($1:$5576)/(ИСХ.!$B$4:$B$5550=$BB$1),ROWS($59:60)))),\"\")","v":""}]
["0",{"$f":"IFERROR(_xlfn.SINGLE(INDEX(ИСХ.!$I$4:$I$5550,_xlfn.AGGREGATE(15,6,ROW($1:$5576)/(ИСХ.!$B$4:$B$5550=$BB$1),ROWS($59:61)))),\"\")","v":""}]
["0",{"$f":"IFERROR(_xlfn.SINGLE(INDEX(ИСХ.!$I$4:$I$5550,_xlfn.AGGREGATE(15,6,ROW($1:$5576)/(ИСХ.!$B$4:$B$5550=$BB$1),ROWS($59:62)))),\"\")","v":""},null,null,null,null,null,null,null,null,null,null,null,null,null,null,null,null,null,null,null,null,null,null,null,null,null,null,null,null,null,null,null,null,null,null,null,null,null,null,null,null,null,null,null,null,null,null,null,null,null,null,"строки 59:66 перенос с листа \"ИСХ.\" столбец I за счет значения"]
["0",{"$f":"IFERROR(_xlfn.SINGLE(INDEX(ИСХ.!$I$4:$I$5550,_xlfn.AGGREGATE(15,6,ROW($1:$5576)/(ИСХ.!$B$4:$B$5550=$BB$1),ROWS($59:63)))),\"\")","v":""}]
["0",{"$f":"IFERROR(_xlfn.SINGLE(INDEX(ИСХ.!$I$4:$I$5550,_xlfn.AGGREGATE(15,6,ROW($1:$5576)/(ИСХ.!$B$4:$B$5550=$BB$1),ROWS($59:64)))),\"\")","v":""}]
["0",{"$f":"IFERROR(_xlfn.SINGLE(INDEX(ИСХ.!$I$4:$I$5550,_xlfn.AGGREGATE(15,6,ROW($1:$5576)/(ИСХ.!$B$4:$B$5550=$BB$1),ROWS($59:65)))),\"\")","v":""}]
["0",{"$f":"IFERROR(_xlfn.SINGLE(INDEX(ИСХ.!$I$4:$I$5550,_xlfn.AGGREGATE(15,6,ROW($1:$5576)/(ИСХ.!$B$4:$B$5550=$BB$1),ROWS($59:66)))),\"\")","v":""}]
["х",{"$f":"IF(ISNUMBER(SEARCH(\"\",B59)),\"\",\"н/п\")","v":"н/п"}]
["х","(наименование строительных материалов (изделий), реквизиты сертификатов и (или) других документов, подтверждающих их качество и безопасность, в случае если необходимо указывать более 5 документов, указывается ссылка на их реестр, который является неотъемлемой частью акта)"]
["х","4. Предъявлены документы, подтверждающие соответствие работ предъявляемым к ним требованиям:"]
[{"$f":"IF(ISNUMBER(SEARCH(\"\",B70)),\"х\",\"0\")","v":"х"},{"$f":"IFERROR(_xlfn.SINGLE(INDEX(ИСХ.!$K$4:$K$5550,_xlfn.AGGREGATE(15,6,ROW($1:$5576)/(ИСХ.!$B$4:$B$5550=$BB$1),ROWS($70:70)))),\"\")","v":"Исполнительная схема разработки анкерной траншеи №9-ГП от 16.09.2024 г."}]
[{"$f":"IF(ISNUMBER(SEARCH(\"\",B71)),\"х\",\"0\")","v":"0"},{"$f":"IFERROR(_xlfn.SINGLE(INDEX(ИСХ.!$K$4:$K$5550,_xlfn.AGGREGATE(15,6,ROW($1:$5576)/(ИСХ.!$B$4:$B$5550=$BB$1),ROWS($70:71)))),\"\")","v":""}]
["0",{"$f":"IFERROR(_xlfn.SINGLE(INDEX(ИСХ.!$K$4:$K$5550,_xlfn.AGGREGATE(15,6,ROW($1:$5576)/(ИСХ.!$B$4:$B$5550=$BB$1),ROWS($70:72)))),\"\")","v":""}]
["0",{"$f":"IFERROR(_xlfn.SINGLE(INDEX(ИСХ.!$K$4:$K$5550,_xlfn.AGGREGATE(15,6,ROW($1:$5576)/(ИСХ.!$B$4:$B$5550=$BB$1),ROWS($70:73)))),\"\")","v":""},null,null,null,null,null,null,null,null,null,null,null,null,null,null,null,null,null,null,null,null,null,null,null,null,null,null,null,null,null,null,null,null,null,null,null,null,null,null,null,null,null,null,null,null,null,null,null,null,null,null,"строки 70:76 перенос с листа \"ИСХ.\" столбец K за счет значения"]
["0",{"$f":"IFERROR(_xlfn.SINGLE(INDEX(ИСХ.!$K$4:$K$5550,_xlfn.AGGREGATE(15,6,ROW($1:$5576)/(ИСХ.!$B$4:$B$5550=$BB$1),ROWS($70:74)))),\"\")","v":""}]
["0",{"$f":"IFERROR(_xlfn.SINGLE(INDEX(ИСХ.!$K$4:$K$5550,_xlfn.AGGREGATE(15,6,ROW($1:$5576)/(ИСХ.!$B$4:$B$5550=$BB$1),ROWS($70:75)))),\"\")","v":""}]
["0",{"$f":"IFERROR(_xlfn.SINGLE(INDEX(ИСХ.!$K$4:$K$5550,_xlfn.AGGREGATE(15,6,ROW($1:$5576)/(ИСХ.!$B$4:$B$5550=$BB$1),ROWS($70:76)))),\"\")","v":""}]
["х","(исполнительные схемы и чертежи, результаты экспертиз, обследований, лабораторных и иных испытаний выполненных работ, проведенных в процессе строительного контроля)  "]
["х","5. Даты:",null,null,null,null,null,"начала работ",null,null,null,null,null,null,null,null,null,null,"«",{"$f":"IFERROR(TEXT(VLOOKUP(BA1,ИСХ.!A4:N14,3,FALSE),\"ДД\"),\"\")","v":"16"},null,"»",null,{"$f":"IFERROR(VLOOKUP(BA1,ИСХ.!A4:N14,3,FALSE),\"\")","v":"2024-09-16"},null,null,null,null,null,null,null,{"$f":"IFERROR(TEXT(VLOOKUP(BA1,ИСХ.!A4:N14,3,FALSE),\"ГГГГ\"),\"\")","v":"2024"},null,null,"г."]
["х",null,null,null,null,null,null,"окончания работ",null,null,null,null,null,null,null,null,null,null,"«",{"$f":"IFERROR(TEXT(VLOOKUP(BA1,ИСХ.!A4:N14,4,FALSE),\"ДД\"),\"\")","v":"16"},null,"»",null,{"$f":"IFERROR(VLOOKUP(BA1,ИСХ.!A4:N14,4,FALSE),\"\")","v":"2024-09-16"},null,null,null,null,null,null,null,{"$f":"IFERROR(TEXT(VLOOKUP(BA1,ИСХ.!A4:N14,4,FALSE),\"ГГГГ\"),\"\")","v":"2024"},null,null,"г."]
["х","6. Работы выполнены в соответствии с "]
["х","СП 45.13330.2017 \"СНиП 3.02.01-87 Земляные сооружения, основания и фундаменты\","]
[{"$f":"IF(ISNUMBER(SEARCH(\"\",B82)),\"х\",\"0\")","v":"х"},{"$f":"IFERROR(_xlfn.SINGLE(INDEX(ИСХ.!$H$4:$H$5550,_xlfn.AGGREGATE(15,6,ROW($1:$5576)/(ИСХ.!$B$4:$B$5550=$BB$1),ROWS($82:82)))),\"\")","v":"2400-G19127-042-CS-DRW-00322-01-R rev.12C sh.4 / 340-1-19П-06003-ГП ред.12C л.4 от 20.09.2022 г."}]
[{"$f":"IF(ISNUMBER(SEARCH(\"\",B83)),\"х\",\"0\")","v":"0"},{"$f":"IFERROR(_xlfn.SINGLE(INDEX(ИСХ.!$H$4:$H$5550,_xlfn.AGGREGATE(15,6,ROW($1:$5576)/(ИСХ.!$B$4:$B$5550=$BB$1),ROWS($82:83)))),\"\")","v":""}]
["х",{"$f":"B56","v":"ООО\"НИПИ ОНГМ\" ГИП Шерман Г.М."}]
["х","(наименования и структурные единицы технических регламентов, иных нормативных правовых актов, разделы проектной и (или) рабочей документации)"]
["х","7. Разрешается производство последующих работ"]
[{"$f":"IF(ISNUMBER(SEARCH(\"\",B87)),\"х\",\"0\")","v":"х"},{"$f":"IFERROR(VLOOKUP(BA1,ИСХ.!A4:N14,12,FALSE),\"\")","v":"Укладка на откосы насыпи геоматов МТ 15-350 (300) \"ЭКСТРАМАТ\""}]
["0",{"$f":"IF(ISNUMBER(SEARCH(\"\",B87)),\"\",\"н/п\")","v":""}]
["х","(наименование работ, строительных конструкций, участков сетей инженерно-технического обеспечения)"]
["х","Дополнительные сведения"]
[{"$f":"IF(ISNUMBER(SEARCH(\"\",B91)),\"х\",\"0\")","v":"0"},{"$f":"IFERROR(_xlfn.SINGLE(INDEX(ИСХ.!$N$4:$N$5550,_xlfn.AGGREGATE(15,6,ROW($1:$5576)/(ИСХ.!$B$4:$B$5550=$BB$1),ROWS($91:91)))),\"\")","v":""}]
["х",{"$f":"IF(ISNUMBER(SEARCH(\"\",B91)),\"\",\"н/п\")","v":"н/п"}]
["х","Акт составлен в ",null,null,null,null,null,null,null,"2-х",null,"экземплярах (в случае заполнения акта на бумажном носителе)."]
["х"," Приложения:"]
[{"$f":"IF(ISNUMBER(SEARCH(\"\",B95)),\"х\",\"0\")","v":"х"},{"$f":"IFERROR(_xlfn.SINGLE(INDEX(ИСХ.!$M$4:$M$5550,_xlfn.AGGREGATE(15,6,ROW($1:$5576)/(ИСХ.!$B$4:$B$5550=$BB$1),ROWS($95:95)))),\"\")","v":"Исполнительная схема разработки анкерной траншеи №9-ГП от 16.09.2024 г."}]
["0",{"$f":"IFERROR(_xlfn.SINGLE(INDEX(ИСХ.!$M$4:$M$5550,_xlfn.AGGREGATE(15,6,ROW($1:$5576)/(ИСХ.!$B$4:$B$5550=$BB$1),ROWS($95:96)))),\"\")","v":""}]
["0",{"$f":"IFERROR(_xlfn.SINGLE(INDEX(ИСХ.!$M$4:$M$5550,_xlfn.AGGREGATE(15,6,ROW($1:$5576)/(ИСХ.!$B$4:$B$5550=$BB$1),ROWS($95:97)))),\"\")","v":""}]
["0",{"$f":"IFERROR(_xlfn.SINGLE(INDEX(ИСХ.!$M$4:$M$5550,_xlfn.AGGREGATE(15,6,ROW($1:$5576)/(ИСХ.!$B$4:$B$5550=$BB$1),ROWS($95:98)))),\"\")","v":""}]
["0",{"$f":"IFERROR(_xlfn.SINGLE(INDEX(ИСХ.!$M$4:$M$5550,_xlfn.AGGREGATE(15,6,ROW($1:$5576)/(ИСХ.!$B$4:$B$5550=$BB$1),ROWS($95:99)))),\"\")","v":""}]
["0",{"$f":"IFERROR(_xlfn.SINGLE(INDEX(ИСХ.!$M$4:$M$5550,_xlfn.AGGREGATE(15,6,ROW($1:$5576)/(ИСХ.!$B$4:$B$5550=$BB$1),ROWS($95:100)))),\"\")","v":""}]
["0",{"$f":"IFERROR(_xlfn.SINGLE(INDEX(ИСХ.!$M$4:$M$5550,_xlfn.AGGREGATE(15,6,ROW($1:$5576)/(ИСХ.!$B$4:$B$5550=$BB$1),ROWS($95:101)))),\"\")","v":""}]
[{"$f":"IF(ISNUMBER(SEARCH(\"\",B102)),\"х\",\"0\")","v":"0"},{"$f":"IF(ISNUMBER(SEARCH(\"\",B95)),\"\",\"н/п\")","v":""}]
[null,"(исполнительные схемы и чертежи, результаты экспертиз, обследований, лабораторных и иных испытаний)"]
[null,"Представитель застройщика, технического заказчика, лица, ответственного за эксплуатацию здания, сооружения или регионального оператора по вопросам строительного контроля"]
[]
[null,"(фамилия, инициалы)",null,null,null,null,null,null,null,null,null,null,null,null,null,null,null,null,null,null,null,null,null,null,null,null,null,null,null,null,null,null,null,null,null,null,null,null,null,null,null,null,null,null,"(подпись)"]
[]
[null,"(фамилия, инициалы)",null,null,null,null,null,null,null,null,null,null,null,null,null,null,null,null,null,null,null,null,null,null,null,null,null,null,null,null,null,null,null,null,null,null,null,null,null,null,null,null,null,null,"(подпись)"]
[null,"Представитель лица, осуществляющего строительство, реконструкцию, капитальный ремонт"]
[]
[null,"(фамилия, инициалы)",null,null,null,null,null,null,null,null,null,null,null,null,null,null,null,null,null,null,null,null,null,null,null,null,null,null,null,null,null,null,null,null,null,null,null,null,null,null,null,null,null,null,"(подпись)"]
[null,"Представитель лица, осуществляющего строительство, реконструкцию, капитальный ремонт, по вопросам строительного контроля"]
[]
[null,"(фамилия, инициалы)",null,null,null,null,null,null,null,null,null,null,null,null,null,null,null,null,null,null,null,null,null,null,null,null,null,null,null,null,null,null,null,null,null,null,null,null,null,null,null,null,null,null,"(подпись)"]
[null,"Представитель лица, осуществляющего подготовку проектной документации (в случае привлечения застройщиком лица, осуществляющего подготовку проектной документации, для проверки соответствия выполняемых работ проектной документации согласно части 2 статьи 53 Градостроительного кодекса Российской Федерации)"]
[null,"н/п"]
[null,"(фамилия, инициалы)",null,null,null,null,null,null,null,null,null,null,null,null,null,null,null,null,null,null,null,null,null,null,null,null,null,null,null,null,null,null,null,null,null,null,null,null,null,null,null,null,null,null,"(подпись)"]
[null,"Представитель лица, выполнившего работы, подлежащие освидетельствованию (в случае выполнения работ по договорам о строительстве, реконструкции, капитальном ремонте объектов капитального строительства, заключённого с иными лицами)"]
[null,"н/п"]
[null,"(фамилия, инициалы)",null,null,null,null,null,null,null,null,null,null,null,null,null,null,null,null,null,null,null,null,null,null,null,null,null,null,null,null,null,null,null,null,null,null,null,null,null,null,null,null,null,null,"(подпись)"]